[Event "HSG Open 2022 B"]
[Site "Hilversum, Netherlands"]
[Date "2022.06.19"]
[Round "6.2"]
[White "Harten, Bram van"]
[Black "Wijono, Santoso"]
[Result "1/2-1/2"]
[TimeControl "1:50 + 0.10"]
[WhiteElo "1870"]
[BlackElo "1789"]

1. d4 {[%clk 01:50:19]} {[%emt 00:00:01]} Nf6 {[%clk 01:50:03]} {[%emt
00:00:17]} 2. c4 {[%clk 01:50:26]} {[%emt 00:00:02]} e6 {[%clk 01:49:32]}
{[%emt 00:00:42]} 3. Nf3 {[%clk 01:50:28]} {[%emt 00:00:08]} b6 {[%clk
01:49:20]} {[%emt 00:00:22]} 4. g3 {[%clk 01:50:30]} {[%emt 00:00:08]} Bb7
{[%clk 01:49:22]} {[%emt 00:00:08]} 5. Bg2 {[%clk 01:50:32]} {[%emt 00:00:08]}
Be7 {[%clk 01:48:49]} {[%emt 00:00:42]} 6. O-O {[%clk 01:49:35]} {[%emt
00:01:07]} O-O {[%clk 01:48:55]} {[%emt 00:00:04]} 7. Nc3 {[%clk 01:49:39]}
{[%emt 00:00:06]} d5 {[%clk 01:47:57]} {[%emt 00:01:09]} 8. cxd5 {[%clk
01:48:28]} {[%emt 00:01:21]} exd5 {[%clk 01:45:22]} {[%emt 00:02:45]} 9. Bf4
{[%clk 01:45:09]} {[%emt 00:03:28]} Nh5 {[%clk 01:44:13]} {[%emt 00:01:20]} 10.
Bd2 {[%clk 01:45:00]} {[%emt 00:00:19]} Nd7 {[%clk 01:42:26]} {[%emt 00:01:57]}
11. Rc1 {[%clk 01:44:43]} {[%emt 00:00:26]} Nhf6 {[%clk 01:36:14]} {[%emt
00:06:22]} 12. Bf4 {[%clk 01:42:50]} {[%emt 00:02:02]} Nh5 {[%clk 01:31:51]}
{[%emt 00:04:34]} 13. Bd2 {[%clk 01:36:42]} {[%emt 00:06:19]} a6 {[%clk
01:28:44]} {[%emt 00:03:17]} 14. Qb3 {[%clk 01:33:34]} {[%emt 00:03:17]} Nhf6
{[%clk 01:18:05]} {[%emt 00:10:50]} 15. Bf4 {[%clk 01:24:57]} {[%emt 00:08:47]}
Rc8 {[%clk 01:07:39]} {[%emt 00:10:36]} 16. Bh3 {[%clk 01:17:39]} {[%emt
00:07:28]} c5 {[%clk 01:04:22]} {[%emt 00:03:27]} 17. dxc5 {[%clk 01:15:00]}
{[%emt 00:02:48]} Nxc5 {[%clk 01:03:49]} {[%emt 00:00:43]} 18. Qd1 {[%clk
01:14:26]} {[%emt 00:00:44]} Ne6 {[%clk 01:03:19]} {[%emt 00:00:40]} 19. Be3
{[%clk 01:06:42]} {[%emt 00:07:54]} Bc5 {[%clk 01:00:41]} {[%emt 00:02:49]} 20.
Nd4 {[%clk 01:03:00]} {[%emt 00:03:51]} Re8 {[%clk 00:56:17]} {[%emt 00:04:34]}
21. Na4 {[%clk 00:58:27]} {[%emt 00:04:42]} Bxd4 {[%clk 00:48:53]} {[%emt
00:07:35]} 22. Rxc8 {[%clk 00:57:46]} {[%emt 00:00:50]} Bxc8 {[%clk 00:48:28]}
{[%emt 00:00:36]} 23. Bxe6 {[%clk 00:55:17]} {[%emt 00:02:39]} Bxe3 {[%clk
00:40:36]} {[%emt 00:08:02]} 24. Bxc8 {[%clk 00:54:44]} {[%emt 00:00:43]} Qxc8
{[%clk 00:40:36]} {[%emt 00:00:11]} 25. fxe3 {[%clk 00:54:11]} {[%emt
00:00:42]} Qh3 {[%clk 00:40:33]} {[%emt 00:00:14]} 26. Rxf6 {[%clk 00:44:47]}
{[%emt 00:09:33]} gxf6 {[%clk 00:40:41]} {[%emt 00:00:02]} 27. Nxb6 {[%clk
00:39:46]} {[%emt 00:05:11]} Qe6 {[%clk 00:37:37]} {[%emt 00:03:13]} 28. Nxd5
{[%clk 00:38:09]} {[%emt 00:01:48]} Rd8 {[%clk 00:36:31]} {[%emt 00:01:17]} 29.
e4 {[%clk 00:36:46]} {[%emt 00:01:33]} Kg7 {[%clk 00:34:31]} {[%emt 00:02:09]}
30. Qd4 {[%clk 00:29:17]} {[%emt 00:07:39]} Qe5 {[%clk 00:28:08]} {[%emt
00:06:34]} 31. Qxe5 {[%clk 00:27:00]} {[%emt 00:02:27]} fxe5 {[%clk 00:28:16]}
{[%emt 00:00:02]} 32. Kf2 {[%clk 00:26:54]} {[%emt 00:00:16]} h5 {[%clk
00:26:45]} {[%emt 00:01:40]} 33. h4 {[%clk 00:25:54]} {[%emt 00:01:10]} Rc8
{[%clk 00:26:33]} {[%emt 00:00:22]} 34. b4 {[%clk 00:24:22]} {[%emt 00:01:42]}
Rc2 {[%clk 00:26:10]} {[%emt 00:00:33]} 35. a4 {[%clk 00:24:14]} {[%emt
00:00:18]} f6 {[%clk 00:25:32]} {[%emt 00:00:48]} 36. Kf3 {[%clk 00:21:10]}
{[%emt 00:03:14]} Rd2 {[%clk 00:24:58]} {[%emt 00:00:44]} 37. Nc7 {[%clk
00:20:16]} {[%emt 00:01:04]} a5 {[%clk 00:21:07]} {[%emt 00:04:02]} 38. bxa5
{[%clk 00:19:51]} {[%emt 00:00:34]} Ra2 {[%clk 00:21:08]} {[%emt 00:00:09]} 39.
a6 {[%clk 00:18:44]} {[%emt 00:01:18]} Rxa4 {[%clk 00:21:15]} {[%emt 00:00:03]}
40. Kf2 {[%clk 00:16:18]} {[%emt 00:02:35]} Kf7 {[%clk 00:21:09]} {[%emt
00:00:17]} 41. Kf3 {[%clk 00:16:19]} {[%emt 00:00:09]} Ke7 {[%clk 00:19:55]}
{[%emt 00:01:23]} 42. Nd5+ {[%clk 00:15:19]} {[%emt 00:01:10]} Ke6 {[%clk
00:19:27]} {[%emt 00:00:38]} 43. e3 {[%clk 00:12:34]} {[%emt 00:02:55]} f5
{[%clk 00:18:26]} {[%emt 00:01:12]} 44. Nc3 {[%clk 00:11:02]} {[%emt 00:01:41]}
Rxa6 {[%clk 00:17:46]} {[%emt 00:00:51]} 45. exf5+ {[%clk 00:10:56]} {[%emt
00:00:16]} Kxf5 {[%clk 00:17:52]} {[%emt 00:00:04]} 46. e4+ {[%clk 00:09:01]}
{[%emt 00:02:04]} Ke6 {[%clk 00:17:22]} {[%emt 00:00:40]} 47. Nd5 {[%clk
00:08:52]} {[%emt 00:00:19]} Ra3+ {[%clk 00:16:43]} {[%emt 00:00:49]} 48. Ne3
{[%clk 00:08:36]} {[%emt 00:00:26]} Kd6 {[%clk 00:15:17]} {[%emt 00:01:36]} 49.
Kf2 {[%clk 00:08:29]} {[%emt 00:00:17]} Kc5 {[%clk 00:15:15]} {[%emt 00:00:12]}
50. Nd5 {[%clk 00:05:41]} {[%emt 00:02:58]} Ra6 {[%clk 00:13:38]} {[%emt
00:01:47]} 51. Kf3 {[%clk 00:05:04]} {[%emt 00:00:48]} Rg6 {[%clk 00:13:04]}
{[%emt 00:00:26]} 52. Ne7 {[%clk 00:04:21]} {[%emt 00:01:10]} Rg4 {[%clk
00:12:22]} {[%emt 00:00:50]} 53. Nf5 {[%clk 00:04:29]} {[%emt 00:00:04]} Kb4
{[%clk 00:11:31]} {[%emt 00:01:02]} 54. Nh6 {[%clk 00:04:14]} {[%emt 00:00:25]}
Rg7 {[%clk 00:11:20]} {[%emt 00:00:18]} 55. Nf5 {[%clk 00:04:23]} {[%emt
00:00:04]} Rg8 {[%clk 00:11:00]} {[%emt 00:00:29]} 56. Ke3 {[%clk 00:04:28]}
{[%emt 00:00:06]} Kc3 {[%clk 00:10:56]} {[%emt 00:00:13]} 57. Ke2 {[%clk
00:03:37]} {[%emt 00:01:01]} Rg6 {[%clk 00:09:44]} {[%emt 00:01:22]} 58. Ke3
{[%clk 00:03:43]} {[%emt 00:00:05]} Rg4 {[%clk 00:09:01]} {[%emt 00:00:54]} 59.
Kf3 {[%clk 00:02:45]} {[%emt 00:01:07]} Kd3 {[%clk 00:08:11]} {[%emt 00:00:55]}
60. Nd6 {[%clk 00:02:53]} {[%emt 00:00:07]} Rg6 {[%clk 00:07:06]} {[%emt
00:01:14]} 61. Nf5 {[%clk 00:02:39]} {[%emt 00:00:24]} Rf6 {[%clk 00:06:53]}
{[%emt 00:00:23]} 62. g4 {[%clk 00:02:43]} {[%emt 00:00:07]} hxg4 {[%clk
00:06:51]} {[%emt 00:00:12]} 63. Kxg4 {[%clk 00:02:51]} {[%emt 00:00:02]} Kxe4
{[%clk 00:06:51]} {[%emt 00:00:09]} 64. Ng3+ {[%clk 00:02:55]} {[%emt
00:00:07]} Kd3 {[%clk 00:04:58]} {[%emt 00:02:03]} 65. Kg5 {[%clk 00:03:00]}
{[%emt 00:00:04]} Rf3 {[%clk 00:04:57]} {[%emt 00:00:11]} 66. Nf5 {[%clk
00:02:39]} {[%emt 00:00:31]} Ke4 {[%clk 00:03:18]} {[%emt 00:01:49]} 67. Nd6+
{[%clk 00:02:25]} {[%emt 00:00:24]} Kd5 {[%clk 00:03:25]} {[%emt 00:00:02]} 68.
Nf5 {[%clk 00:01:40]} {[%emt 00:00:55]} Ke6 {[%clk 00:03:11]} {[%emt 00:00:25]}
69. Ng7+ {[%clk 00:01:40]} {[%emt 00:00:09]} Kf7 {[%clk 00:03:17]} {[%emt
00:00:04]} 70. Nf5 {[%clk 00:01:49]} {[%emt 00:00:02]} Kf8 {[%clk 00:02:59]}
{[%emt 00:00:27]} 71. Kg4 {[%clk 00:01:26]} {[%emt 00:00:33]} Rf2 {[%clk
00:03:04]} {[%emt 00:00:05]} 72. h5 {[%clk 00:01:21]} {[%emt 00:00:16]} Kf7
{[%clk 00:02:49]} {[%emt 00:00:25]} 73. Ne3 {[%clk 00:01:04]} {[%emt 00:00:26]}
e4 {[%clk 00:02:25]} {[%emt 00:00:34]} 74. Nc4 {[%clk 00:00:41]} {[%emt
00:00:33]} Kg7 {[%clk 00:02:14]} {[%emt 00:00:21]} 75. Kg3 {[%clk 00:00:37]}
{[%emt 00:00:15]} Rf8 {[%clk 00:02:08]} {[%emt 00:00:15]} 76. Kg4 {[%clk
00:00:40]} {[%emt 00:00:08]} Kh6 {[%clk 00:02:10]} {[%emt 00:00:08]} 77. Ne3
{[%clk 00:00:38]} {[%emt 00:00:12]} Rf3 {[%clk 00:01:40]} {[%emt 00:00:36]} 78.
Nc4 {[%clk 00:00:44]} {[%emt 00:00:07]} Rf6 {[%clk 00:01:25]} {[%emt 00:00:25]}
79. Ne3 {[%clk 00:00:47]} {[%emt 00:00:07]} Rf2 {[%clk 00:01:05]} {[%emt
00:00:30]} 80. Nc4 {[%clk 00:00:34]} {[%emt 00:00:24]} Re2 {[%clk 00:00:46]}
{[%emt 00:00:29]} 81. Nd6 {[%clk 00:00:27]} {[%emt 00:00:16]} e3 {[%clk
00:00:36]} {[%emt 00:00:20]} 82. Nf5+ {[%clk 00:00:36]} {[%emt 00:00:03]} Kh7
{[%clk 00:00:41]} {[%emt 00:00:04]} 83. Kf3 {[%clk 00:00:44]} Rh2 {[%clk
00:00:49]} {[%emt 00:00:03]} 84. Kxe3 {[%clk 00:00:38]} {[%emt 00:00:16]} Rxh5
{[%clk 00:00:57]} {[%emt 00:00:01]} 85. Ke4 {[%emt 00:00:14]} 1/2-1/2